fUST/lending_fUST_20250225
["ID","MTS","AMOUNT","RATE_DAILY","PERIOD"]
[354429037,1740487840348,-842.01,0.00054794,120]
[354429038,1740487840357,-163.52740041,0.00054794,10]
[354429039,1740487840367,-501.63937723,0.00054794,120]
[354429040,1740487840377,-500.0,0.00054794,120]
[354429041,1740487840386,-500.0,0.00054794,120]
[354429042,1740487840396,-500.0,0.00054794,120]
[354429043,1740487840406,-519.94,0.00054794,120]
[354429044,1740487840415,-500.0,0.00054794,120]
[354429045,1740487840425,-602.39,0.00054794,120]
[354429046,1740487840434,-500.0,0.00054794,120]
[354429047,1740487840444,-500.0,0.00054794,120]
[354429048,1740487840453,-500.0,0.00054794,120]
[354429049,1740487840463,-500.0,0.00054794,120]
[354429050,1740487840473,-500.0,0.00054794,120]
[354429051,1740487840483,-549.56,0.00054794,120]
[354429052,1740487840493,-500.0,0.00054794,120]
[354429053,1740487840507,-631.8,0.00054794,120]
[354429054,1740487840517,-502.4315246,0.00054794,120]
[354429055,1740487840527,-500.0,0.00054794,120]
[354429056,1740487840537,-500.0,0.00054794,120]
[354429057,1740487840550,-500.0,0.00054794,120]
[354429059,1740487840560,-501.9245879,0.00054794,120]
[354429061,1740487840570,-500.0,0.00054794,120]
[354429062,1740487840581,-500.0,0.00054794,120]
[354429063,1740487840591,-500.0,0.00054794,120]
[354429064,1740487840601,-500.0,0.00054794,120]
[354429065,1740487840611,-1896.67,0.00054794,120]
[354429066,1740487840621,-500.0,0.00054794,120]
[354429067,1740487840631,-927.05,0.00054794,120]
[354429068,1740487840640,-500.0,0.00054794,120]
[354429069,1740487840651,-500.0,0.00054794,120]
[354429070,1740487840660,-500.0,0.00054794,120]
[354429071,1740487840671,-657.66,0.00054794,120]
[354429072,1740487840680,-896.64,0.00054794,120]
[354429073,1740487840690,-500.0,0.00054794,120]
[354429074,1740487840699,-500.0,0.00054794,120]
[354429075,1740487840709,-508.42948685,0.00054794,120]
[354429076,1740487840719,-500.0,0.00054794,120]
[354429077,1740487840729,-500.0,0.00054794,120]
[354429078,1740487840807,-500.0,0.00054794,120]
[354429079,1740487840817,-500.0,0.00054794,120]
[354429080,1740487840827,-500.0,0.00054794,120]
[354429081,1740487840837,-500.0,0.00054794,120]
[354429082,1740487840847,-204.05839644,0.00054794,120]
[354429083,1740487840857,-499.78951145,0.00054794,120]
[354429084,1740487840867,-600.0,0.00054794,120]
[354429085,1740487840877,-500.0,0.00054794,120]
[354429086,1740487840887,-358.96403759,0.00054794,120]
[354429087,1740487840897,-554.17,0.00054794,120]
[354429088,1740487840906,-500.0,0.00054794,120]
[354429089,1740487840916,-500.0,0.00054794,120]
[354429090,1740487840934,-500.0,0.00054794,120]
[354429091,1740487840944,-500.0,0.00054794,120]
[354429092,1740487840954,-547.65947379,0.00054794,120]
[354429093,1740487840965,-500.0,0.00054794,120]
[354429094,1740487840977,-503.29660716,0.00054794,120]
[354429095,1740487840986,-500.0,0.00054794,120]
[354429096,1740487840996,-500.0,0.00054794,120]
[354429097,1740487841006,-500.0,0.00054794,120]
[354429098,1740487841017,-342.54820576,0.00054794,120]
[354429099,1740487841027,-500.0,0.00054794,120]
[354429100,1740487841036,-500.0,0.00054794,120]
[354429101,1740487841046,-500.0,0.00054794,120]
[354429102,1740487841055,-500.0,0.00054794,120]
[354429103,1740487841064,-500.0,0.00054794,120]
[354429104,1740487841074,-500.0,0.00054794,120]
[354429105,1740487841083,-500.0,0.00054794,120]
[354429106,1740487841093,-500.0,0.00054794,120]
[354429107,1740487841102,-831.83,0.00054794,120]
[354429108,1740487841112,-500.0,0.00054794,120]
[354429109,1740487841122,-453.6850382,0.00054794,120]
[354429110,1740487841132,-500.0,0.00054794,120]
[354429111,1740487841141,-500.0,0.00054794,120]
[354429112,1740487841151,-500.0,0.00054794,120]
[354429113,1740487841161,-500.0,0.00054794,120]
[354429114,1740487841170,-500.0,0.00054794,120]
[354429115,1740487841180,-503.78879382,0.00054794,120]
[354429116,1740487841190,-500.0,0.00054794,120]
[354429117,1740487841200,-453.27760459,0.00054794,120]
[354429118,1740487841210,-500.0,0.00054794,120]
[354429119,1740487841219,-500.0,0.00054794,120]
[354429120,1740487841228,-501.38442027,0.00054794,120]
[354429121,1740487841238,-500.0,0.00054794,120]
[354429122,1740487841248,-500.0,0.00054794,120]
[354429123,1740487841258,-515.46,0.00054794,120]
[354429124,1740487841268,-500.0,0.00054794,120]
[354429125,1740487841278,-500.0,0.00054794,120]
[354429126,1740487841287,-500.0,0.00054794,30]
[354429127,1740487841297,-580.49456557,0.00054794,120]
[354429128,1740487841306,-500.0,0.00054794,120]
[354429129,1740487841315,-500.0,0.00054794,120]
[354429130,1740487841325,-500.0,0.00054794,120]
[354429131,1740487841333,-500.0,0.00054794,120]
[354429132,1740487841343,-500.0,0.00054794,120]
[354429133,1740487841352,-506.34042098,0.00054794,120]
[354429134,1740487841361,-500.0,0.00054794,120]
[354429135,1740487841371,-500.0,0.00054794,120]
[354429136,1740487841380,-500.0,0.00054794,120]
[354429137,1740487841389,-500.0,0.00054794,120]
[354429138,1740487841399,-500.0,0.00054794,120]
[354429139,1740487841408,-500.0,0.00054794,120]
[354429140,1740487841418,-500.0,0.00054794,120]
[354429141,1740487841427,-500.0,0.00054794,120]
[354429142,1740487841437,-514.34,0.00054794,120]
[354429143,1740487841447,-500.0,0.00054794,120]
[354429144,1740487841457,-500.0,0.00054794,120]
[354429145,1740487841467,-500.0,0.00054794,120]
[354429146,1740487841476,-1130.75278122,0.00054794,2]
[354429147,1740487841486,-500.0,0.00054794,120]
[354429148,1740487841495,-356.86498641,0.00054794,120]
[354429149,1740487841505,-588.16,0.00054794,120]
[354429150,1740487841519,-500.0,0.00054794,120]
[354429151,1740487841529,-500.0,0.00054794,120]
[354429152,1740487841539,-500.0,0.00054794,120]
[354429153,1740487841549,-501.90571832,0.00054794,120]
[354429154,1740487841559,-500.0,0.00054794,120]
[354429155,1740487841570,-2716.07,0.00054794,120]
[354429156,1740487841579,-500.0,0.00054794,120]
[354429157,1740487841590,-500.0,0.00054794,120]
[354429158,1740487841600,-1008.28792213,0.00054794,120]
[354429159,1740487841609,-500.0,0.00054794,120]
[354429160,1740487841619,-500.0,0.00054794,120]
[354429161,1740487841628,-500.0,0.00054794,120]
[354429162,1740487841639,-546.12,0.00054794,120]
[354429163,1740487841648,-1000.0,0.00054794,20]
[354429164,1740487841658,-501.57451633,0.00054794,120]
[354429165,1740487841668,-500.0,0.00054794,120]
[354429166,1740487841677,-500.0,0.00054794,120]
[354429167,1740487841687,-504.1,0.00054794,120]
[354429168,1740487841697,-501.28405783,0.00054794,120]
[354429169,1740487841765,-500.0,0.00054794,120]
[354429170,1740487841781,-6082.49,0.00054794,120]
[354429171,1740487841791,-500.0,0.00054794,120]
[354429172,1740487841800,-496.0,0.00054794,120]
[354429173,1740487841809,-500.0,0.00054794,120]
[354429174,1740487841818,-500.0,0.00054794,120]
[354429175,1740487841828,-502.69990503,0.00054794,120]
[354429176,1740487841837,-500.0,0.00054794,120]
[354429177,1740487841847,-501.12964478,0.00054794,120]
[354429178,1740487841857,-500.0,0.00054794,120]
[354429179,1740487841867,-500.0,0.00054794,120]
[354429180,1740487841877,-1000.0,0.00054794,120]
[354429181,1740487841886,-1125.08,0.00054794,120]
[354429182,1740487841896,-500.70415903,0.00054794,120]
[354429183,1740487841905,-500.0,0.00054794,120]
[354429184,1740487841915,-500.0,0.00054794,120]
[354429185,1740487841925,-500.0,0.00054794,120]
[354429186,1740487841934,-500.0,0.00054794,120]
[354429187,1740487841943,-504.25318967,0.00054794,120]
[354429188,1740487841953,-221.87435926,0.00054794,120]
[354429189,1740487841962,-500.0,0.00054794,120]
[354429190,1740487841972,-500.0,0.00054794,120]
[354429191,1740487841982,-500.0,0.00054794,120]
[354429192,1740487841992,-500.0,0.00054794,120]
[354429193,1740487842001,-500.0,0.00054794,120]
[354429194,1740487842011,-603.34087825,0.00054794,120]
[354429195,1740487842020,-500.0,0.00054794,120]
[354429196,1740487842030,-500.0,0.00054794,120]
[354429197,1740487842040,-500.0,0.00054794,120]
[354429198,1740487842049,-500.0,0.00054794,120]
[354429199,1740487842059,-185.3585877,0.00054794,30]
[354429200,1740487842069,-500.0,0.00054794,120]
[354429201,1740487842079,-500.0,0.00054794,120]
[354429202,1740487842090,-500.0,0.00054794,120]
[354429203,1740487842099,-652.47,0.00054794,120]
[354429204,1740487842109,-500.0,0.00054794,120]
[354429205,1740487842119,-500.0,0.00054794,120]
[354429206,1740487842129,-500.0,0.00054794,120]
[354429207,1740487842138,-500.0,0.00054794,120]
[354429208,1740487842147,-500.0,0.00054794,120]
[354429209,1740487842157,-157.84752274,0.00054794,120]
[354429210,1740487842166,-227.71901665,0.00054794,120]
[354429211,1740487842187,-500.0,0.00054794,120]
[354429212,1740487842206,-500.0,0.00054794,120]
[354429213,1740487842225,-500.0,0.00054794,120]
[354429214,1740487842245,-500.0,0.00054794,120]
[354429215,1740487842265,-500.0,0.00054794,120]
[354429216,1740487842283,-500.0,0.00054794,120]
[354429217,1740487842301,-500.0,0.00054794,120]
[354429218,1740487842316,-501.27374992,0.00054794,120]
[354429219,1740487842334,-500.0,0.00054794,120]
[354429220,1740487842351,-344.08271797,0.00054794,120]
[354429221,1740487842372,-500.0,0.00054794,120]
[354429222,1740487842385,-500.0,0.00054794,120]
[354429223,1740487842403,-500.0,0.00054794,120]
[354429224,1740487842418,-265.02017437,0.00054794,120]
[354429225,1740487842435,-502.03235506,0.00054794,120]
[354429226,1740487842450,-500.0,0.00054794,120]
[354429227,1740487842465,-500.0,0.00054794,120]
[354429228,1740487842480,-500.0,0.00054794,120]
[354429229,1740487842496,-767.42,0.00054794,120]
[354429230,1740487842513,-500.0,0.00054794,120]
[354429231,1740487842529,-500.0,0.00054794,120]
[354429232,1740487842545,-500.0,0.00054794,120]
[354429234,1740487842561,-500.0,0.00054794,120]
[354429236,1740487842577,-500.0,0.00054794,120]
[354429239,1740487842592,-500.0,0.00054794,120]
[354429242,1740487842608,-500.0,0.00054794,120]
[354429244,1740487842624,-500.0,0.00054794,120]
[354429247,1740487842640,-500.0,0.00054794,120]
[354429248,1740487842656,-500.0,0.00054794,120]
[354429249,1740487842672,-500.0,0.00054794,120]
[354429250,1740487842686,-24684.36,0.00054794,6]
[354429251,1740487842702,-1574.86,0.00054794,120]
[354429252,1740487842716,-500.0,0.00054794,120]
[354429254,1740487842732,-500.0,0.00054794,120]
[354429256,1740487842750,-2532.48,0.00054794,120]
[354429258,1740487842766,-500.0,0.00054794,120]
[354429260,1740487842781,-818.13,0.00054794,120]
[354429262,1740487842798,-500.0,0.00054794,120]
[354429263,1740487842814,-500.0,0.00054794,120]
[354429264,1740487842828,-500.0,0.00054794,120]
[354429265,1740487842844,-392.99,0.00054794,120]
[354429266,1740487842859,-501.71620983,0.00054794,120]
[354429267,1740487842874,-500.75229359,0.00054794,120]
[354429268,1740487843003,-500.0,0.00054794,120]
[354429269,1740487843014,-500.52985807,0.00054794,120]
[354429270,1740487843024,-607.61,0.00054794,120]
[354429271,1740487843034,-503.28745639,0.00054794,120]
[354429272,1740487843044,-500.0,0.00054794,120]
[354429273,1740487843054,-500.0,0.00054794,120]
[354429274,1740487843063,-500.0,0.00054794,120]
[354429275,1740487843073,-500.0,0.00054794,120]
[354429276,1740487843082,-500.0,0.00054794,120]
[354429277,1740487843092,-1161.96,0.00054794,120]
[354429278,1740487843101,-500.0,0.00054794,120]
[354429279,1740487843111,-500.0,0.00054794,120]
[354429280,1740487843121,-6324.31,0.00054794,120]
[354429281,1740487843131,-1617.51,0.00054794,120]
[354429282,1740487843141,-1290.83,0.00054794,120]
[354429283,1740487843150,-502.23662351,0.00054794,120]
[354429284,1740487843160,-500.0,0.00054794,120]
[354429285,1740487843169,-501.46367698,0.00054794,120]
[354429286,1740487843179,-500.0,0.00054794,120]
[354429287,1740487843188,-500.0,0.00054794,120]
[354429288,1740487843198,-8429.2,0.00054794,120]
[354429289,1740487843208,-500.0,0.00054794,120]
[354429290,1740487843217,-677.28,0.00054794,120]
[354429291,1740487843227,-835.47,0.00054794,120]
[354429292,1740487843237,-173.72139823,0.00054794,120]
[354429293,1740487843246,-500.0,0.00054794,120]
[354429294,1740487843255,-1331.29,0.00054794,120]
[354429295,1740487843265,-500.0,0.00054794,120]
[354429296,1740487843274,-568.92151049,0.00054794,120]
[354429297,1740487843284,-501.26543642,0.00054794,120]
[354429298,1740487843294,-500.0,0.00054794,120]
[354429299,1740487843303,-500.0,0.00054794,120]
[354429300,1740487843313,-500.0,0.00054794,120]
[354429301,1740487843322,-951.47,0.00054794,120]
[354429302,1740487843332,-500.0,0.00054794,120]
[354429303,1740487843343,-500.0,0.00054794,120]
[354429304,1740487843352,-500.0,0.00054794,120]
[354429305,1740487843363,-501.45461369,0.00054794,120]
[354429306,1740487843373,-500.0,0.00054794,120]
[354429307,1740487843383,-501.43120417,0.00054794,120]
[354429308,1740487843393,-500.0,0.00054794,120]
[354429309,1740487843402,-500.0,0.00054794,120]
[354429310,1740487843412,-500.0,0.00054794,120]
[354429311,1740487843421,-500.0,0.00054794,120]
[354429312,1740487843430,-500.0,0.00054794,120]
[354429313,1740487843440,-1002.42,0.00054794,120]
[354429314,1740487843449,-500.0,0.00054794,30]
[354429315,1740487843459,-500.0,0.00054794,120]
[354429316,1740487843468,-573.71,0.00054794,120]
[354429317,1740487843477,-500.0,0.00054794,120]
[354429318,1740487843487,-500.0,0.00054794,120]
[354429319,1740487843496,-500.57311242,0.00054794,30]
[354429320,1740487843509,-500.70520302,0.00054794,120]
[354429321,1740487843519,-538.72,0.00054794,120]
[354429322,1740487843529,-500.0,0.00054794,120]
[354429323,1740487843538,-500.0,0.00054794,120]
[354429324,1740487843547,-1241.29,0.00054794,120]
[354429325,1740487843557,-500.0,0.00054794,120]
[354429326,1740487843566,-500.0,0.00054794,120]
[354429327,1740487843576,-500.0,0.00054794,120]
[354429328,1740487843586,-511.9710748,0.00054794,120]
[354429329,1740487843596,-531.56,0.00054794,120]
[354429330,1740487843605,-1089.19,0.00054794,120]
[354429331,1740487843615,-500.0,0.00054794,120]
[354429332,1740487843624,-116322.21,0.00054794,7]
[354429333,1740487843634,-545.79,0.00054794,120]
[354429334,1740487843643,-500.0,0.00054794,120]
[354429335,1740487843652,-500.0,0.00054794,120]
[354429336,1740487843666,-2559.73,0.00054794,3]
[354429337,1740487843678,-503.17401817,0.00054794,120]
[354429338,1740487843699,-509.93473873,0.00054794,120]
[354429339,1740487843710,-503.28001754,0.00054794,120]
[354429340,1740487843719,-3500.0,0.00054794,120]
[354429341,1740487843729,-500.0,0.00054794,120]
[354429342,1740487843739,-2499.78,0.00054794,120]
[354429343,1740487843748,-500.0,0.00054794,120]
[354429344,1740487843758,-500.0,0.00054794,120]
[354429345,1740487843767,-500.0,0.00054794,120]
[354429346,1740487843777,-500.0,0.00054794,120]
[354429347,1740487843787,-501.32647514,0.00054794,120]
[354429348,1740487843797,-500.0,0.00054794,120]
[354429349,1740487843807,-500.0,0.00054794,120]
[354429350,1740487843817,-500.0,0.00054794,120]
[354429351,1740487843826,-153.74,0.00054794,120]
[354429352,1740487843835,-3586.76,0.00054794,120]
[354429353,1740487843844,-500.0,0.00054794,120]
[354429354,1740487843854,-4044.02,0.00054794,120]
[354429355,1740487843863,-619.63,0.00054794,120]
[354429356,1740487843872,-500.0,0.00054794,120]
[354429357,1740487843882,-500.37473037,0.00054794,120]
[354429358,1740487843891,-631.67,0.00054794,120]
[354429359,1740487843900,-500.0,0.00054794,120]
[354429360,1740487843909,-500.52163272,0.00054794,120]
[354429361,1740487843918,-500.0,0.00054794,120]
[354429362,1740487843928,-22729.11,0.00054794,120]
[354429363,1740487843937,-710.93,0.00054794,120]
[354429364,1740487843947,-1559.65,0.00054794,120]
[354429365,1740487843957,-814.17,0.00054794,120]
[354429366,1740487843967,-500.0,0.00054794,120]
[354429367,1740487843977,-500.0,0.00054794,120]
[354429368,1740487843987,-500.0,0.00054794,120]
[354429369,1740487843997,-949.23,0.00054794,120]
[354429370,1740487844007,-506.52428404,0.00054794,120]
[354429371,1740487844016,-500.0,0.00054794,120]
[354429372,1740487844026,-500.0,0.00054794,120]
[354429373,1740487844036,-500.0,0.00054794,120]
[354429374,1740487844045,-784.64,0.00054794,120]
[354429375,1740487844055,-500.0,0.00054794,120]
[354429376,1740487844064,-15388.58,0.00054794,120]
[354429377,1740487844074,-500.0,0.00054794,120]
[354429378,1740487844083,-612.5,0.00054794,120]
[354429379,1740487844092,-504.5809581,0.00054794,120]
[354429380,1740487844102,-711.12,0.00054794,120]
[354429381,1740487844113,-210.40750591,0.00054794,120]
[354429382,1740487844123,-500.0,0.00054794,120]
[354429383,1740487844132,-529.01,0.00054794,120]
[354429384,1740487844143,-668.88,0.00054794,120]
[354429385,1740487844152,-500.0,0.00054794,21]
[354429386,1740487844163,-500.0,0.00054794,120]
[354429387,1740487844172,-500.0,0.00054794,120]
[354429388,1740487844186,-500.0,0.00054794,120]
[354429389,1740487844208,-500.0,0.00054794,120]
[354429390,1740487844219,-500.0,0.00054794,120]
[354429391,1740487844228,-568.15,0.00054794,120]
[354429392,1740487844238,-500.0,0.00054794,120]
[354429393,1740487844248,-2037.34,0.00054794,120]
[354429394,1740487844257,-500.61610734,0.00054794,120]
[354429395,1740487844267,-751.89,0.00054794,120]
[354429396,1740487844276,-500.0,0.00054794,2]
[354429397,1740487844286,-1178.19,0.00054794,120]
[354429398,1740487844295,-1178.19,0.00054794,120]
[354429399,1740487844305,-1178.19,0.00054794,120]
[354429400,1740487844393,-1178.19,0.00054794,120]
[354429401,1740487844403,-1178.19,0.00054794,120]
[354429402,1740487844413,-500.0,0.00054794,120]
[354429403,1740487844423,-1178.19,0.00054794,120]
[354429404,1740487844433,-1178.19,0.00054794,120]
[354429405,1740487844442,-622.09,0.00054794,120]
[354429406,1740487844452,-1178.19,0.00054794,120]
[354429407,1740487844461,-1178.19,0.00054794,120]
[354429408,1740487844471,-1178.19,0.00054794,120]
[354429409,1740487844481,-1178.19,0.00054794,120]
[354429410,1740487844491,-1178.19,0.00054794,120]
[354429411,1740487844500,-1178.19,0.00054794,120]
[354429412,1740487844513,-500.0,0.00054794,120]
[354429413,1740487844522,-500.8851464,0.00054794,2]
[354429414,1740487844532,-1178.19,0.00054794,120]
[354429415,1740487844541,-1178.19,0.00054794,120]
[354429416,1740487844550,-1178.19,0.00054794,120]
[354429417,1740487844561,-1178.19,0.00054794,120]
[354429418,1740487844571,-1178.19,0.00054794,120]
[354429419,1740487844580,-1178.19,0.00054794,120]
[354429420,1740487844592,-500.65690588,0.00054794,120]
[354429421,1740487844602,-1178.19,0.00054794,120]
[354429422,1740487844611,-1178.19,0.00054794,120]
[354429423,1740487844621,-1178.19,0.00054794,120]
[354429425,1740487844630,-1178.19,0.00054794,120]
[354429427,1740487844640,-1178.4,0.00054794,120]
[354429429,1740487844650,-500.0,0.00054794,120]
[354429430,1740487844659,-500.0,0.00054794,120]
[354429431,1740487844669,-500.0,0.00054794,120]
[354429432,1740487844678,-500.0,0.00054794,120]
[354429433,1740487844693,-500.0,0.00054794,120]
[354429434,1740487844704,-386.09082293,0.00054794,120]
[354429435,1740487844714,-500.0,0.00054794,120]
[354429436,1740487844723,-500.0,0.00054794,120]
[354429437,1740487844737,-934.02,0.00054794,120]
[354429438,1740487844747,-533.39,0.00054794,120]
[354429439,1740487844757,-756.67,0.00054794,120]
[354429440,1740487844767,-500.0,0.00054794,120]
[354429441,1740487844776,-452.42013348,0.00054794,120]
[354429442,1740487844786,-503.7741359,0.00054794,120]
[354429443,1740487844795,-500.0,0.00054794,120]
[354429444,1740487844806,-500.0,0.00054794,120]
[354429445,1740487844816,-103949.25646582,0.000548,30]
[354429447,1740487845280,-436.89958059,0.00054794,120]
[354429448,1740487845290,-111940.86353418,0.000548,30]
[354429449,1740487845301,-552.23670387,0.0005493,120]
[354429450,1740487845312,-151.0,0.000552,23]
[354429451,1740487845325,-151.0,0.000552,23]
[354429452,1740487845337,-1866.10095335,0.00055232,30]
[354429453,1740487845347,-151.0,0.000553,28]
[354429454,1740487845357,-100000.0,0.000553,120]
[354429455,1740487845367,-37972.3034559,0.00055332,5]
[354429456,1740487845378,-210.63512114,0.00055332,5]
[354429457,1740487845389,-500.0,0.00055342,120]
[354429458,1740487845399,-250.0,0.00055342,120]
[354429459,1740487845409,-500.0,0.00055342,120]
[354429460,1740487845420,-655.44,0.00055342,120]
[354429461,1740487845431,-500.0,0.00055342,120]
[354429462,1740487845448,-500.0,0.00055342,120]
[354429464,1740487845457,-500.0,0.00055342,120]
[354429465,1740487845559,-500.0,0.00055342,120]
[354429466,1740487845569,-505.67643483,0.00055342,120]
[354429467,1740487845579,-459.31998981,0.00055342,120]
[354429468,1740487845589,-500.0,0.00055342,120]
[354429469,1740487845598,-500.0,0.00055342,120]
[354429470,1740487845608,-500.0,0.00055342,120]
[354429471,1740487845617,-501.26518634,0.00055342,120]
[354429472,1740487845627,-506.1836146,0.00055342,120]
[354429473,1740487845637,-500.0,0.00055342,120]
[354429474,1740487845646,-500.0,0.00055342,120]
[354429475,1740487845655,-500.0,0.00055342,120]
[354429476,1740487845666,-606.07240333,0.00055342,120]
[354429477,1740487845675,-346.93540459,0.00055342,120]
[354429478,1740487845685,-502.67921079,0.00055342,120]
[354429479,1740487845700,-500.0,0.00055342,120]
[354429480,1740487845710,-2000.0,0.00055342,120]
[354429481,1740487845720,-500.0,0.00055342,120]
[354429482,1740487845730,-298.07545518,0.00055342,120]
[354429483,1740487845740,-500.0,0.00055342,120]
[354429484,1740487845749,-506.09003924,0.00055342,120]
[354429485,1740487845759,-500.0,0.00055342,120]
[354429486,1740487845769,-500.0,0.00055342,120]
[354429487,1740487845779,-500.0,0.00055342,120]
[354429488,1740487845789,-500.0,0.00055342,120]
[354429489,1740487845799,-500.0,0.00055342,120]
[354429490,1740487845808,-500.0,0.00055342,120]
[354429491,1740487845818,-516.77,0.00055342,120]
[354429492,1740487845828,-500.0,0.00055342,120]
[354429493,1740487845838,-504.85519085,0.00055342,120]
[354429494,1740487845847,-842.01,0.00055342,120]
[354429495,1740487845857,-519.94,0.00055342,120]
[354429496,1740487845866,-602.39,0.00055342,120]
[354429497,1740487845876,-276.42634141,0.00055342,120]
[354429498,1740487845886,-500.0,0.00055342,120]
[354429499,1740487845895,-549.56,0.00055342,120]
[354429500,1740487845905,-500.0,0.00055342,120]
[354429501,1740487845915,-631.8,0.00055342,120]
[354429502,1740487845925,-500.0,0.00055342,120]
[354429504,1740487845934,-500.0,0.00055342,120]
[354429506,1740487845946,-500.0,0.00055342,120]
[354429507,1740487845956,-500.0,0.00055342,120]
[354429508,1740487845965,-500.0,0.00055342,120]
[354429509,1740487845975,-502.63538926,0.00055342,120]
[354429510,1740487845985,-1896.67,0.00055342,120]
[354429512,1740487845995,-927.05,0.00055342,120]
[354429514,1740487846005,-500.0,0.00055342,120]
[354429516,1740487846014,-500.0,0.00055342,120]
[354429517,1740487846024,-500.0,0.00055342,120]
[354429518,1740487846034,-657.66,0.00055342,120]
[354429519,1740487846043,-896.64,0.00055342,120]
[354429521,1740487846054,-501.10285846,0.00055342,120]
[354429522,1740487846064,-500.0,0.00055342,120]
[354429523,1740487846074,-500.0,0.00055342,120]
[354429524,1740487846083,-500.0,0.00055342,120]
[354429525,1740487846093,-500.0,0.00055342,120]
[354429526,1740487846103,-600.0,0.00055342,120]
[354429527,1740487846112,-500.0,0.00055342,120]
[354429528,1740487846122,-554.17,0.00055342,120]
[354429529,1740487846132,-500.0,0.00055342,120]
[354429531,1740487846141,-500.0,0.00055342,120]
[354429532,1740487846151,-500.0,0.00055342,120]
[354429533,1740487846161,-500.0,0.00055342,120]
[354429534,1740487846171,-500.0,0.00055342,120]
[354429535,1740487846180,-500.0,0.00055342,120]
[354429536,1740487846190,-500.0,0.00055342,120]
[354429537,1740487846200,-500.0,0.00055342,120]
[354429538,1740487846210,-551.29579042,0.00055342,120]
[354429539,1740487846219,-630.08645818,0.00055342,120]
[354429540,1740487846229,-831.83,0.00055342,120]
[354429541,1740487846238,-500.0,0.00055342,120]
[354429543,1740487846247,-500.0,0.00055342,120]
[354429545,1740487846257,-500.0,0.00055342,120]
[354429547,1740487846267,-500.0,0.00055342,120]
[354429549,1740487846277,-500.0,0.00055342,120]
[354429550,1740487846286,-500.0,0.00055342,120]
[354429551,1740487846296,-500.0,0.00055342,120]
[354429552,1740487846306,-500.0,0.00055342,120]
[354429553,1740487846316,-515.46,0.00055342,120]
[354429554,1740487846325,-500.0,0.00055342,120]
[354429555,1740487846335,-500.0,0.00055342,120]
[354429556,1740487846345,-502.3457061,0.00055342,30]
[354429557,1740487846354,-500.0,0.00055342,120]
[354429558,1740487846363,-500.0,0.00055342,120]
[354429559,1740487846372,-500.0,0.00055342,120]
[354429560,1740487846382,-500.0,0.00055342,120]
[354429561,1740487846391,-549.50750272,0.00055342,120]
[354429562,1740487846401,-514.34,0.00055342,120]
[354429563,1740487846410,-500.0,0.00055342,120]
[354429564,1740487846419,-500.0,0.00055342,120]
[354429565,1740487846429,-500.0,0.00055342,120]
[354429566,1740487846439,-500.0,0.00055342,120]
[354429567,1740487846448,-588.16,0.00055342,120]
[354429568,1740487846458,-500.0,0.00055342,120]